bitfinex-derivatives/quotes_ETHF0:USTF0_20250904
["timestamp","ask_amount","ask_price","bid_price","bid_amount"]
[1756969877638,0.6898,4378.4,4378.3,0.9387]
[1756969879134,0.1934,4378.4,4378.3,1.25197125]
[1756969879734,0.4847,4378.7,4378.6,0.7067]
[1756969879935,0.67935708,4378.7,4378.6,0.7067]
[1756969880240,0.97065708,4378.7,4378.6,0.7067]
[1756969881143,0.67935708,4378.7,4378.6,0.7067]
[1756969881738,0.67935708,4378.7,4378.6,2.70608359]
[1756969881939,1.2315393,4379.7,4378.6,2.40888359]
[1756969882144,1.17579306,4379.4,4379.3,0.5]
[1756969883242,1.17579306,4379.4,4379.3,0.7067]
[1756969883746,1.17579306,4379.4,4379.3,0.9387]
[1756969884337,0.6898,4379.4,4379.3,0.9387]
[1756969885255,0.1934,4379.4,4379.3,0.9387]
[1756969885548,0.4847,4379.7,4379.6,0.7067]
[1756969885749,0.96777355,4379.7,4379.6,0.7067]
[1756969886046,1.17287355,4379.7,4379.6,0.7067]
[1756969886447,0.6898,4379.7,4379.6,0.7067]
[1756969886647,0.88148356,4379.7,4379.0,2.12308359]
[1756969886844,0.6898,4379.2,4379.1,0.7067]
[1756969887039,0.1207,4379.0,4378.8,1.53019932]
[1756969887238,0.3985,4378.9,4378.8,0.4348]
[1756969887444,0.6898,4378.9,4378.8,0.9387]
[1756969887644,0.1207,4379.5,4378.8,0.9387]
[1756969887852,0.2913,4379.1,4378.8,0.6415]
[1756969888152,0.4847,4379.1,4379.0,0.5332]
[1756969888450,0.4847,4379.1,4379.0,0.8304]
[1756969888953,0.6898,4379.1,4379.0,0.8304]
[1756969889251,0.6898,4379.1,4379.0,0.7067]
[1756969889853,0.6898,4379.1,4379.0,0.8304]
[1756969890149,0.1934,4379.1,4379.0,0.8304]
[1756969890344,1.99938359,4379.9,4379.8,0.2028]
[1756969890345,0.4847,4379.9,4379.8,0.2028]
[1756969890552,1.17279196,4379.9,4379.8,0.2028]
[1756969890944,1.17279196,4379.9,4379.5,0.2972]
[1756969891143,0.1198,4380.0,4379.5,0.7067]
[1756969891144,0.6898,4379.6,4379.5,0.7067]
[1756969891351,1.17279196,4379.6,4379.5,0.7067]
[1756969892550,1.17279196,4379.6,4379.5,0.8304]
[1756969893355,0.6898,4379.6,4379.5,0.8304]
[1756969893651,0.3985,4379.6,4379.5,0.8304]
[1756969893851,0.6898,4379.6,4379.5,0.8304]
[1756969894052,0.6898,4379.6,4379.5,0.7067]
[1756969895559,0.6898,4379.6,4379.5,0.8304]
[1756969896161,0.1934,4379.6,4379.5,0.8304]
[1756969896857,0.4847,4379.7,4379.6,0.7067]
[1756969897056,0.1934,4379.7,4379.6,0.7067]
[1756969898654,0.2913,4380.0,4379.7,0.2972]
[1756969898862,0.4847,4380.0,4379.9,0.7067]
[1756969899461,0.6898,4380.0,4379.9,2.34175391]
[1756969900155,0.16045046,4381.0,4380.0,0.1237]
[1756969900361,0.6898,4380.9,4380.8,1.63505391]
[1756969900554,0.3985,4380.7,4380.6,0.5]
[1756969900760,0.3985,4380.7,4380.6,0.7067]
[1756969900761,0.6898,4380.7,4380.6,0.7067]
[1756969901356,0.6898,4380.7,4380.6,0.5]
[1756969901557,0.6898,4380.7,4380.2,0.197]
[1756969901558,0.6898,4380.3,4380.2,0.197]
[1756969901765,0.6898,4380.3,4379.8,0.232]
[1756969901766,0.3985,4379.9,4379.8,0.232]
[1756969901965,0.1934,4379.3,4379.2,2.04455391]
[1756969902164,0.4915,4379.3,4379.2,2.33455391]
[1756969902364,0.4915,4379.3,4379.2,2.56655391]
[1756969902564,0.4915,4379.3,4379.2,2.33455391]
[1756969902762,0.688,4379.3,4379.2,0.2028]
[1756969902966,0.2981,4379.2,4379.1,0.2065]
[1756969903271,0.6974,4379.2,4379.1,0.9358]
[1756969903963,0.6974,4379.2,4379.1,0.2065]
[1756969904161,0.3993,4379.2,4378.8,0.29]
[1756969904364,0.6974,4378.1,4378.0,0.8275]
[1756969904566,0.2028,4378.1,4378.0,2.46255391]
[1756969904765,0.2981,4379.4,4378.1,0.29]
[1756969905062,1.2315393,4380.1,4378.6,1.92505391]
[1756969905063,0.2981,4378.9,4378.6,1.92505391]
[1756969905265,0.1182,4379.0,4378.6,1.92505391]
[1756969905266,0.2028,4378.8,4378.7,0.6458]
[1756969905464,0.5009,4379.2,4379.1,0.4138]
[1756969905765,0.5009,4379.2,4379.1,2.33885391]
[1756969905973,0.2028,4379.2,4379.1,2.33885391]
[1756969906161,0.2028,4379.2,4379.1,2.57085391]
[1756969906466,0.2981,4379.9,4379.2,0.29]
[1756969906670,0.6974,4379.9,4379.8,2.33885391]
[1756969906871,0.5009,4379.9,4379.8,0.7038]
[1756969907064,0.6974,4379.9,4379.8,2.57085391]
[1756969912969,0.6974,4379.9,4379.8,2.33885391]
[1756969913168,0.6974,4379.9,4379.8,0.9358]
[1756969914074,0.6974,4379.9,4379.8,2.57085391]
[1756969915070,0.2028,4379.9,4379.8,2.57085391]
[1756969916269,0.6974,4380.9,4380.8,0.2065]
[1756969916471,1.40846866,4380.9,4380.8,0.4965]
[1756969916666,1.18017865,4380.9,4380.8,0.4965]
[1756969916968,1.18017865,4380.9,4380.8,0.7038]
[1756969918981,1.18017865,4380.9,4380.8,0.2065]
[1756969919276,1.18017865,4380.9,4380.3,0.232]
[1756969919277,1.18017865,4380.9,4380.5,0.29]
[1756969919475,0.6974,4380.6,4380.5,0.4965]
[1756969919675,0.6974,4380.6,4380.5,0.7038]
[1756969920178,0.8156,4380.5,4380.4,0.7285]
[1756969920380,0.5009,4380.5,4380.4,0.9358]
[1756969920973,0.5009,4380.5,4380.4,0.7038]
[1756969921173,0.6974,4380.5,4380.4,0.9358]
[1756969921876,0.6974,4380.5,4380.4,0.7038]
[1756969922076,0.6974,4380.5,4380.4,0.9358]
[1756969922880,0.8156,4380.5,4380.4,0.7038]
[1756969923081,0.3993,4380.3,4380.2,0.232]
[1756969923379,0.6974,4380.3,4380.2,0.7285]
[1756969923780,0.6974,4380.3,4380.2,0.9358]
[1756969936592,0.6974,4380.3,4380.2,2.57085391]
[1756969936593,0.2028,4380.3,4380.2,2.57085391]
[1756969936794,0.5033,4380.3,4380.2,2.57085391]
[1756969937486,0.2028,4380.3,4380.2,2.57085391]
[1756969937689,0.5033,4380.3,4380.2,2.57085391]
[1756969938893,0.5033,4380.3,4380.2,0.7038]
[1756969939090,0.5033,4380.3,4380.2,2.57085391]
[1756969939696,0.3005,4380.6,4380.3,0.2912]
[1756969939997,0.7013,4380.6,4380.5,0.6891]
[1756969940198,1.18463766,4380.6,4380.5,0.6891]
[1756969940396,1.18463766,4380.6,4380.5,0.9211]
[1756969942403,0.68903766,4380.6,4380.5,1.0427]
[1756969943106,0.98953766,4380.6,4380.5,1.0427]
[1756969945909,1.18463766,4380.6,4380.5,0.8107]
[1756969946204,1.18463766,4380.6,4380.5,0.9211]
[1756969947708,1.18463766,4380.6,4380.5,0.232]
[1756969948409,1.18463766,4380.6,4380.2,0.2912]
[1756969948410,1.18463766,4380.6,4380.3,0.232]
[1756969948706,1.18463766,4380.5,4380.4,0.4837]
[1756969949301,1.31003766,4380.5,4380.4,0.4837]
[1756969949807,1.31003766,4380.5,4380.4,0.6891]
[1756969950006,1.31003766,4380.5,4380.4,0.9211]
[1756969950409,1.18463766,4380.5,4380.4,0.9211]
[1756969951209,1.31003766,4380.5,4380.4,0.7157]
[1756969951403,1.31003766,4380.5,4380.4,0.1925]
[1756969951604,1.31003766,4380.5,4380.3,0.232]
[1756969951909,1.18463766,4380.4,4380.3,0.232]
[1756969952098,1.18463766,4380.4,4380.3,0.4245]
[1756969952915,1.18463766,4380.4,4380.3,2.55615391]
[1756969959909,1.18463766,4380.4,4380.3,2.32415391]
[1756969960107,1.18463766,4380.4,4380.3,2.55615391]
[1756969960613,0.7013,4380.4,4380.3,2.55615391]
[1756969960813,1.18489574,4380.4,4380.3,2.55615391]
[1756969961405,1.18489574,4380.4,4380.3,0.9211]
[1756969962016,0.68929574,4380.4,4380.3,2.91800418]
[1756969962314,1.20179574,4380.4,4380.3,0.9211]
[1756969962707,1.20179574,4380.4,4380.0,1.52349932]
[1756969962910,1.20179574,4380.4,4379.6,1.99690418]
[1756969962911,0.7163,4380.2,4380.1,0.4838]
[1756969963108,0.4101,4379.9,4379.8,0.4838]
[1756969963307,0.7163,4379.9,4379.8,0.7158]
[1756969963704,1.19994918,4379.9,4379.6,1.23299932]
[1756969963907,0.4101,4379.6,4379.4,0.232]
[1756969964109,1.32045452,4379.5,4379.4,0.232]
[1756969964308,1.32045452,4379.5,4379.4,0.4253]
[1756969964508,0.3062,4379.4,4378.9,1.23299932]
[1756969964709,0.4101,4379.1,4379.0,0.7158]
[1756969965009,0.7163,4379.1,4379.0,0.7158]
[1756969965213,0.2038,4379.1,4379.0,1.0421]
[1756969966013,0.51,4379.1,4379.0,1.0421]
[1756969966908,0.7163,4379.9,4379.8,0.1933]
[1756969967111,0.7163,4379.9,4379.8,0.6886]
[1756969967112,1.20488738,4379.9,4379.8,0.6886]
[1756969968711,0.2038,4379.1,4379.0,0.3148]
[1756969968916,0.51,4379.1,4379.0,1.0421]
[1756969969113,0.51,4379.1,4379.0,0.8101]
[1756969969310,0.3062,4380.4,4379.1,0.2905]
[1756969969514,0.3062,4380.1,4379.2,0.232]
[1756969969712,0.51,4379.3,4379.2,0.9206]
[1756969970019,0.7163,4379.9,4379.8,0.4838]
[1756969970314,1.20450744,4379.9,4379.8,0.4838]
[1756969971910,1.20450744,4379.9,4379.8,0.1933]
[1756969972411,0.3062,4379.7,4379.3,0.6301]
[1756969972716,0.2038,4379.4,4379.3,0.6301]
[1756969972917,0.51,4379.4,4379.3,0.6301]
[1756969973117,0.7163,4379.4,4379.3,0.9206]
[1756969973514,0.7163,4379.4,4379.3,0.6886]
[1756969974019,0.3062,4379.3,4379.0,0.2905]
[1756969974217,0.4101,4379.1,4379.0,0.4838]
[1756969974418,0.7163,4379.1,4379.0,0.4838]
[1756969975816,0.7163,4379.1,4379.0,0.1933]
[1756969976013,0.2038,4378.6,4378.5,0.5197]
[1756969976212,0.7163,4378.6,4378.5,0.3981]
[1756969976614,0.7163,4378.6,4378.5,0.1933]
[1756969977320,0.7163,4378.6,4378.5,0.6886]
[1756969980816,0.4101,4378.3,4378.2,0.4838]
[1756969981018,0.7163,4378.3,4378.2,0.1933]
[1756969981620,0.7163,4378.3,4378.2,0.6886]
[1756969981825,0.2038,4378.3,4378.2,0.6886]
[1756969982226,0.51,4378.3,4378.2,0.6886]
[1756969982428,0.2038,4378.3,4378.2,0.6886]
[1756969982624,0.1139,4378.8,4378.3,0.2905]
[1756969982924,0.524,4378.8,4378.7,0.4838]
[1756969983126,0.4101,4378.8,4378.7,0.4838]
[1756969983314,0.7163,4378.8,4378.7,0.4838]
[1756969983824,0.7163,4378.8,4378.7,0.1933]
[1756969989927,0.7163,4378.8,4378.5,0.2905]
[1756969990427,0.7163,4378.8,4378.3,0.232]
[1756969990630,0.7163,4378.8,4378.4,0.2905]
[1756969991025,0.7163,4378.8,4378.7,0.4838]
[1756969992035,0.7163,4378.8,4378.7,0.6886]
[1756969992236,1.20585401,4378.8,4378.7,0.6886]
[1756969993641,0.69335401,4378.8,4378.7,0.6886]
[1756969993841,0.2038,4378.8,4378.7,0.6886]
[1756969994328,0.5011,4378.8,4378.7,0.6886]
[1756969995441,0.2038,4378.8,4378.7,0.6886]
[1756969996239,0.1139,4379.0,4378.9,0.4188]
[1756969996437,0.2973,4379.4,4379.1,0.2891]
[1756969996638,0.5058,4379.4,4379.3,0.7079]
[1756969997239,0.7014,4379.4,4379.3,0.7079]
[1756970000036,0.1139,4379.6,4379.5,0.1222]
[1756970000340,0.99563573,4379.6,4379.5,0.8301]
[1756970000937,0.69833573,4379.6,4379.5,0.8301]
[1756970001138,0.48983573,4379.6,4379.5,0.8301]
[1756970002841,0.69833573,4379.6,4379.5,0.8301]
[1756970003240,0.2085,4379.6,4379.5,0.8301]
[1756970004943,0.5058,4379.6,4379.5,0.8301]
[1756970005437,0.1139,4379.8,4379.5,0.541]
[1756970005642,0.5058,4379.7,4379.6,0.7079]
[1756970006246,0.1139,4379.8,4379.7,0.2891]
[1756970006442,0.1139,4379.8,4379.7,0.7079]
[1756970006742,0.2973,4380.4,4379.7,0.4188]
[1756970006943,1.19123022,4380.3,4380.2,0.7079]
[1756970010246,0.7014,4380.3,4380.2,0.7079]
[1756970011748,0.5058,4380.3,4380.2,0.7079]
[1756970011949,0.99518301,4380.3,4380.2,0.7079]
[1756970012144,1.19078301,4380.3,4380.2,0.2092]
[1756970012349,1.19078301,4380.3,4379.7,0.212]
[1756970012644,2.23130418,4380.5,4379.0,0.1222]
[1756970012645,0.2973,4379.7,4379.0,0.1222]
[1756970012855,0.4929,4379.2,4379.1,0.93622]
[1756970013149,0.7014,4379.2,4379.1,1.16822]
[1756970013346,0.7014,4379.2,4379.1,0.93622]
[1756970013650,0.2085,4379.2,4379.1,0.93622]
[1756970013852,1.99690418,4379.6,4379.1,0.4188]
[1756970014151,2.69830418,4379.6,4379.5,0.4983]
[1756970014750,0.7014,4379.6,4379.5,0.4983]
[1756970014952,0.2085,4379.7,4379.5,0.1222]
[1756970015252,0.4041,4379.7,4379.6,0.7079]
[1756970015637,0.7014,4379.7,4379.6,0.7079]
[1756970017345,0.5058,4380.4,4380.3,0.2096]
[1756970017541,1.1909872,4380.4,4380.3,0.7079]
[1756970017746,1.1909872,4380.4,4379.5,0.3542]
[1756970018050,0.7014,4380.2,4380.1,0.7079]
[1756970018950,1.19104615,4380.2,4380.1,0.7079]
[1756970020350,1.19104615,4380.2,4380.1,0.2092]
[1756970020551,1.19104615,4380.2,4379.6,0.2891]
[1756970020850,0.4041,4379.6,4379.5,0.541]
[1756970021040,0.7014,4379.6,4379.5,0.541]
[1756970021550,0.7014,4379.6,4379.5,0.8301]
[1756970024749,0.7014,4379.6,4379.5,1.0611]
[1756970026351,0.7014,4379.6,4379.5,1.36587711]
[1756970026952,0.7014,4379.6,4379.5,1.13487711]
[1756970027152,0.7313,4380.4,4380.3,0.4136]
[1756970027454,1.22191557,4380.4,4380.3,0.7177]
[1756970031962,1.22191557,4380.4,4380.3,0.5126]
[1756970032163,2.85751432,4380.4,4380.3,0.5126]
[1756970032353,2.54571432,4380.4,4379.7,0.3041]
[1756970032555,0.3118,4379.4,4379.2,0.3041]
[1756970032761,0.7313,4379.3,4379.2,0.5126]
[1756970033064,0.7313,4379.3,4379.2,0.7177]
[1756970039065,0.7313,4379.9,4379.8,0.2085]
[1756970039257,2.85749764,4379.9,4379.8,0.5126]
[1756970039573,2.85749764,4379.9,4379.1,1.63559875]
[1756970039763,0.2092,4379.3,4379.2,0.7177]
[1756970039964,0.521,4379.3,4379.2,0.7177]
[1756970041367,0.3118,4379.6,4379.2,0.7177]
[1756970041672,0.7313,4379.4,4379.3,0.7177]
[1756970041870,0.521,4379.9,4379.8,0.4136]
[1756970042063,1.22190487,4379.9,4379.8,0.7177]
[1756970046470,8.794,4380.3,4379.8,0.7177]
[1756970046471,0.3118,4380.2,4379.8,0.4136]
[1756970046675,0.521,4379.9,4379.8,0.4136]
[1756970046875,0.521,4379.9,4379.8,0.6446]
[1756970047268,0.2092,4379.9,4379.8,0.9487]
[1756970047474,0.2092,4379.9,4379.8,0.6446]
[1756970047674,0.521,4379.9,4379.8,0.6446]
[1756970047873,8.794,4380.3,4379.8,0.6446]
[1756970048076,1.2219033,4380.2,4380.1,0.7177]
[1756970049567,1.2219033,4380.2,4380.1,0.7436]
[1756970051081,1.2219033,4380.2,4380.1,0.9487]
[1756970056184,1.2219033,4380.2,4380.1,0.7177]
[1756970056379,1.2219033,4380.2,4380.1,0.4395]
[1756970056776,1.2219033,4380.2,4380.1,0.2085]
[1756970056978,1.2219033,4380.2,4380.1,0.231]
[1756970057282,1.2219033,4380.2,4379.5,0.1143]
[1756970057283,0.2996,4379.8,4379.7,0.1954]
[1756970057587,0.2996,4379.8,4379.7,0.9241]
[1756970057782,0.5048,4379.8,4379.7,0.9241]
[1756970060289,0.2052,4379.8,4379.7,0.9241]
[1756970061491,0.2996,4380.0,4379.8,0.2902]
[1756970061691,0.5048,4380.0,4379.9,0.6931]
[1756970062787,0.6187,4380.4,4380.3,0.4029]
[1756970062991,1.18813077,4380.4,4380.3,2.32869875]
[1756970063187,1.18813077,4380.4,4380.3,0.6931]
[1756970063695,1.18813322,4380.4,4380.3,0.6931]
[1756970063988,1.18813322,4380.4,4380.3,0.1954]
[1756970064286,0.3981,4380.2,4380.1,0.7166]
[1756970064490,0.6977,4380.2,4380.1,0.7166]
[1756970064691,1.18813322,4380.2,4380.1,0.7166]
[1756970065184,0.88853322,4380.2,4379.7,1.63559875]
[1756970065392,0.6977,4379.9,4379.8,0.4264]
[1756970066391,0.2996,4379.8,4379.7,0.231]
[1756970066692,0.6977,4379.8,4379.7,0.231]
[1756970066896,0.6977,4379.8,4379.7,0.4264]
[1756970067190,0.6977,4379.8,4379.7,0.7166]
[1756970067995,0.6977,4379.8,4379.7,0.9241]
[1756970069495,0.5048,4379.9,4379.8,0.6931]
[1756970069696,0.6977,4379.9,4379.8,0.6931]
[1756970070196,0.6977,4379.9,4379.8,0.9241]
[1756970072108,0.6977,4379.9,4379.8,0.6931]
[1756970072302,1.18800697,4379.9,4379.8,0.9241]
[1756970073997,1.18800697,4379.9,4379.8,0.89864396]
[1756970074200,1.18800697,4379.9,4379.8,1.12964396]
[1756970074993,1.18800697,4379.9,4379.8,0.89864396]
[1756970075194,1.18800697,4379.9,4379.8,1.12964396]
[1756970077400,0.49030697,4379.9,4379.8,2.76524271]
[1756970077598,0.2996,4380.4,4380.2,0.2902]
[1756970077901,1.0010207,4380.3,4380.2,0.9241]
[1756970078097,1.0010207,4380.3,4380.2,1.12963829]
[1756970078495,1.1939207,4380.3,4380.2,1.12963829]
[1756970078696,1.0010207,4380.3,4380.2,1.12963829]
[1756970078896,0.7014207,4380.3,4380.2,1.12963829]
[1756970079306,1.1939207,4380.3,4380.2,1.12963829]
[1756970080706,1.1939207,4380.3,4380.2,0.89863829]
[1756970080907,1.1939207,4380.3,4380.2,1.12963829]
[1756970082409,0.4962207,4380.3,4380.2,1.12963829]
[1756970083408,0.9898207,4380.3,4380.2,1.12963829]
[1756970083603,1.1792207,4380.3,4380.2,1.12963829]
[1756970083908,0.683,4380.3,4380.2,1.12963829]
[1756970084204,0.69304878,4380.3,4380.2,1.12963829]
[1756970084397,0.197,4380.3,4380.2,1.12963829]
[1756970084601,0.98964094,4380.3,4380.2,1.12963829]
[1756970084798,0.4936,4380.3,4380.2,1.12963829]
[1756970085001,0.683,4380.3,4380.2,1.12963829]
[1756970085208,1.17904099,4380.3,4380.2,1.12963829]
[1756970085415,1.17902247,4380.3,4380.2,1.12963829]
[1756970087113,0.98962247,4380.3,4380.2,1.12963829]
[1756970087305,0.49602247,4380.3,4380.2,1.12963829]
[1756970087505,0.1139,4380.5,4380.4,0.3831]
[1756970087806,0.1139,4380.5,4380.4,0.88893829]
[1756970088911,0.197,4380.6,4380.5,0.1205]
[1756970089212,0.4936,4380.6,4380.5,0.94013829]
[1756970089409,0.4936,4380.6,4380.5,1.24043829]
[1756970089616,0.683,4380.6,4380.5,1.11993829]
[1756970089911,1.17865002,4380.6,4380.5,1.11993829]
[1756970090113,0.69265002,4380.6,4380.5,1.24043829]
[1756970090312,0.4936,4380.6,4380.5,1.24043829]
[1756970092515,0.4936,4380.6,4380.5,1.24245456]
[1756970092721,0.1139,4380.8,4380.7,0.3831]
[1756970092923,1.99715284,4381.5,4380.8,0.3003]
[1756970093112,0.5087,4381.0,4380.9,0.40085456]
[1756970093309,1.00403887,4381.0,4380.9,0.63185456]
[1756970093517,0.683,4381.0,4380.9,1.12195456]
[1756970093712,0.2966,4381.4,4381.1,0.3003]
[1756970093918,0.4936,4381.4,4381.3,0.6834]
[1756970094215,0.197,4381.4,4381.3,1.12195456]
[1756970094911,2.11385284,4382.0,4381.3,1.12195456]
[1756970095112,1.17925061,4381.9,4381.8,0.4936]
[1756970095315,1.17925061,4381.9,4381.8,0.70115456]
[1756970096018,7.17640345,4381.9,4381.8,0.20755456]
[1756970096315,0.8053,4381.5,4381.4,0.169]
[1756970096518,0.8053,4381.5,4381.4,0.8697788]
[1756970096817,0.8053,4381.5,4381.4,0.8905788]
[1756970097018,0.8053,4381.5,4381.4,1.1215788]
[1756970097715,0.683,4381.5,4381.4,1.1215788]
[1756970097917,0.197,4381.5,4381.4,1.1215788]
[1756970099912,0.197,4381.5,4381.4,0.8905788]
[1756970100113,0.4936,4381.5,4381.4,1.1215788]
[1756970100312,2.80245284,4381.5,4381.4,0.2071788]
[1756970100613,6.80245284,4381.5,4381.4,0.2071788]
[1756970100809,7.29814006,4381.5,4381.4,0.2071788]
[1756970101013,7.29813407,4381.5,4380.6,0.3003]
[1756970101209,0.3864,4380.8,4380.7,0.63140867]
[1756970101414,0.683,4380.8,4380.7,0.93170867]
[1756970101614,0.683,4380.8,4380.7,0.70070867]
[1756970101816,0.683,4380.8,4380.7,0.63140867]
[1756970102124,0.4936,4380.8,4380.7,1.12150867]
[1756970102716,0.2966,4381.1,4380.7,1.12150867]
[1756970102917,0.683,4381.5,4381.4,0.6834]
[1756970103121,1.17873484,4381.5,4381.4,0.6834]
[1756970104124,1.17873484,4381.5,4381.4,0.89746285]
[1756970104621,1.30103484,4381.5,4381.4,0.89746285]
[1756970105321,1.30103484,4381.5,4381.4,0.40736285]
[1756970105619,3.29818768,4381.5,4380.7,0.3003]
[1756970105825,0.683,4380.9,4380.8,0.70767483]
[1756970106018,0.683,4380.9,4380.8,0.93867483]
[1756970106617,0.683,4380.9,4380.8,0.70767483]
[1756970106818,0.683,4380.9,4380.8,0.21407483]
[1756970107822,0.683,4380.9,4380.8,0.70767483]
[1756970108416,0.683,4380.9,4380.8,0.40737483]
[1756970109120,0.683,4380.9,4380.8,0.21407483]
[1756970109323,1.17922984,4380.9,4380.8,0.21407483]
[1756970109533,5.81662956,4380.9,4379.6,0.3003]
[1756970109823,0.683,4379.7,4379.6,0.6834]
[1756970110322,0.683,4379.7,4379.6,0.4936]
[1756970110624,0.683,4379.7,4379.6,0.3003]
[1756970110817,0.683,4379.7,4378.8,1.22480946]
[1756970110818,0.3864,4379.7,4378.8,1.22480946]
[1756970111020,0.197,4379.2,4379.1,0.9144]
[1756970112725,0.5057,4379.6,4379.5,0.8129]
[1756970113020,0.2091,4379.6,4379.5,0.8129]
[1756970113228,1.2315393,4380.9,4379.5,0.5265]
[1756970113421,0.7024,4380.5,4380.4,0.6903]
[1756970117021,0.7879,4380.5,4380.1,0.2864]
[1756970117218,2.78505284,4380.5,4379.8,0.231]
[1756970117418,2.78505284,4380.5,4379.5,0.1226]
[1756970117419,0.4019,4379.6,4379.5,0.5265]
[1756970117631,0.2091,4379.6,4379.5,0.5265]
[1756970117926,0.7024,4380.2,4380.1,0.1989]
[1756970118127,0.4019,4380.2,4379.5,0.1226]
[1756970118331,0.2091,4379.7,4379.6,0.6903]
[1756970119034,0.4019,4379.7,4379.6,0.6903]
[1756970119229,0.7024,4379.7,4379.6,0.6903]
[1756970120032,0.3005,4380.3,4379.7,0.2864]
[1756970120223,1.99715284,4380.4,4379.7,0.2864]
[1756970120224,0.2091,4379.8,4379.7,0.6903]
[1756970120930,0.4019,4379.8,4379.7,0.6903]
[1756970121232,0.7024,4379.8,4379.7,0.6903]
[1756970121429,0.7024,4379.8,4379.7,0.89835]
[1756970121627,0.3005,4380.2,4379.7,0.61195]
[1756970121827,0.3005,4380.2,4379.5,0.1226]
[1756970121828,0.5096,4380.2,4380.1,0.6903]
[1756970122024,0.7024,4380.2,4380.1,0.6903]
[1756970122726,0.4019,4380.2,4380.1,0.6903]
[1756970123430,0.5096,4380.5,4380.4,0.4039]
[1756970123632,0.5096,4380.5,4380.4,0.6903]
[1756970123633,1.19789561,4380.5,4380.4,0.6903]
[1756970124425,1.28459561,4380.5,4380.1,0.2864]
[1756970124728,0.4886,4380.5,4380.1,0.2864]
[1756970124932,0.7024,4380.4,4380.3,0.4853]
[1756970126226,0.7024,4380.4,4380.0,0.1226]
[1756970126432,0.4019,4380.4,4380.1,0.49456307]
[1756970126632,0.0867,4380.5,4380.2,0.20816307]
[1756970126633,0.3005,4380.3,4380.2,0.20816307]
[1756970126833,0.3005,4380.3,4380.2,0.49456307]
[1756970126834,0.7024,4380.3,4380.2,0.49456307]
[1756970127036,0.7024,4380.3,4380.2,0.69346307]
[1756970127733,0.7024,4380.3,4380.2,0.20816307]
[1756970128436,0.7024,4380.3,4380.2,0.69346307]
[1756970129038,0.2091,4380.3,4380.2,0.89846307]
[1756970129234,0.2091,4380.8,4380.7,0.6903]
[1756970129433,0.2091,4380.8,4380.7,0.89863661]
[1756970130030,0.3005,4381.1,4381.0,0.1226]
[1756970130229,0.70633127,4381.1,4381.0,0.8129]
[1756970130430,0.49723127,4381.1,4381.0,1.02121211]
[1756970130640,0.2091,4381.6,4381.5,0.3276]
[1756970130831,0.70627054,4381.6,4381.5,0.73475429]
[1756970131231,0.70627054,4381.6,4381.5,1.02115429]
[1756970132238,0.70627054,4381.6,4381.5,0.8129]
[1756970132933,0.70627054,4381.6,4380.2,0.231]
[1756970132934,0.0862,4381.5,4380.0,0.1226]
[1756970133134,2.39905284,4380.6,4380.5,0.8129]
[1756970133332,0.231,4381.2,4380.5,0.73476381]
[1756970133532,1.19958123,4381.1,4381.0,0.1989]
[1756970133740,1.19958123,4381.1,4381.0,0.6903]
[1756970133934,0.89908123,4381.1,4381.0,0.8129]
[1756970134134,0.89908123,4381.1,4381.0,1.01862842]
[1756970134331,0.70628123,4381.1,4381.0,1.01862842]
[1756970134538,0.49718123,4381.1,4381.0,1.01862842]
[1756970134931,1.99715284,4381.7,4381.0,0.73222842]
[1756970135132,0.89908959,4381.6,4381.5,0.1989]
[1756970135332,1.19958959,4381.6,4381.5,0.6903]
[1756970135533,0.89908959,4381.6,4381.5,0.8129]
[1756970137635,1.19958959,4381.6,4381.5,0.8129]
[1756970138641,0.89908959,4381.6,4381.5,0.8129]
[1756970139042,1.19958959,4381.6,4381.5,0.8129]
[1756970139543,1.19958959,4381.6,4381.0,0.1226]
[1756970139742,0.7024,4381.2,4381.1,0.69093911]
[1756970140340,0.7024,4381.2,4381.1,0.20563911]
[1756970140542,1.1993805,4381.2,4380.6,0.2864]
[1756970140846,0.4019,4380.8,4380.7,0.89598469]
[1756970141234,0.3005,4381.2,4380.7,0.60958469]
[1756970141439,2.64135002,4381.1,4381.0,0.8129]
[1756970141645,2.53365002,4381.1,4381.0,0.8129]
[1756970142443,2.82105002,4381.1,4381.0,0.8129]
[1756970142642,2.82105002,4381.1,4381.0,0.6903]
[1756970142844,2.82105002,4381.1,4381.0,0.4853]
[1756970144646,0.89899883,4381.1,4381.0,0.8023]
[1756970144854,0.70619883,4381.1,4381.0,1.00806045]
[1756970145048,0.49709883,4381.1,4381.0,1.00806045]
[1756970145443,1.63465119,4381.4,4381.0,0.72166045]
[1756970145753,0.49720057,4381.3,4381.2,0.4024]
[1756970145954,0.68900057,4381.3,4381.2,0.7114]
[1756970146150,0.49720057,4381.3,4381.2,0.7114]
[1756970146346,1.63465119,4381.8,4381.2,0.60814976]
[1756970146542,0.2874,4382.4,4382.0,0.1194]
[1756970146743,2.03575119,4382.4,4382.3,0.7114]
[1756970146951,2.53282584,4382.4,4382.3,0.7114]
[1756970147154,0.89817465,4382.4,4382.3,0.7114]
[1756970148156,2.53282584,4382.4,4382.3,0.7114]
[1756970148355,2.82022584,4382.4,4382.3,0.7114]
[1756970149762,0.49707465,4382.4,4382.3,0.7114]
[1756970149963,9.0814,4382.9,4382.5,0.1194]
[1756970150158,9.4825,4382.9,4382.8,0.5138]
[1756970150353,9.97896264,4382.9,4382.8,0.5138]
[1756970150958,9.97896264,4382.9,4382.8,0.7114]
[1756970151864,2.81961383,4382.9,4382.8,0.7114]
[1756970152067,1.18496264,4382.9,4382.8,0.7114]
[1756970152259,2.53221383,4382.9,4382.8,0.7114]
[1756970152459,0.89756264,4382.9,4382.8,0.7114]
[1756970152667,0.49646264,4382.9,4382.8,0.7114]
[1756970153865,1.82645119,4383.1,4383.0,0.8308]
[1756970154070,2.32261922,4383.1,4383.0,0.8308]